bitfinex-derivatives/quotes_BTCF0:USTF0_20241104
["timestamp","ask_amount","ask_price","bid_price","bid_amount"]
[1730718290756,0.23382542,68790.0,68789.0,0.073732]
[1730718291362,0.30433585,68790.0,68789.0,0.073732]
[1730718291858,0.30433585,68790.0,68789.0,0.001]
[1730718291859,0.23382542,68790.0,68789.0,0.001]
[1730718292064,0.072735,68790.0,68789.0,0.001]
[1730718294869,0.433535,68790.0,68789.0,0.001]
[1730718295162,0.433535,68790.0,68789.0,0.05909042]
[1730718295564,0.474235,68790.0,68789.0,0.05909042]
[1730718295762,0.474235,68790.0,68789.0,0.001]
[1730718296156,0.474235,68790.0,68789.0,0.05909042]
[1730718296556,0.513635,68790.0,68789.0,0.05909042]
[1730718299169,0.61139784,68790.0,68789.0,0.001]
[1730718299661,0.61139784,68790.0,68784.0,0.00218071]
[1730718299662,0.072737,68785.0,68784.0,0.00218071]
[1730718299859,0.11751291,68785.0,68784.0,0.00218071]
[1730718300470,0.11751291,68785.0,68784.0,0.07491871]
[1730718300965,0.11751291,68785.0,68784.0,0.00218071]
[1730718300966,0.11753611,68785.0,68784.0,0.00218071]
[1730718301160,0.11753791,68785.0,68784.0,0.00218071]
[1730718301867,0.11853791,68785.0,68784.0,0.01318071]
[1730718302063,0.073737,68785.0,68784.0,0.01318071]
[1730718302461,0.11850343,68785.0,68784.0,0.01318071]
[1730718303258,0.11950343,68785.0,68784.0,0.02618071]
[1730718303460,0.11950343,68785.0,68784.0,0.02318071]
[1730718303980,0.11850343,68785.0,68784.0,0.01018071]
[1730718304269,0.074737,68785.0,68784.0,0.02018071]
[1730718305167,0.074737,68785.0,68784.0,0.02218071]
[1730718306268,0.074737,68785.0,68784.0,0.02018071]
[1730718309479,0.16646388,68785.0,68784.0,0.02018071]
[1730718310472,0.16646388,68785.0,68765.0,0.0381]
[1730718310473,0.072757,68766.0,68765.0,0.0381]
[1730718310667,0.16448388,68766.0,68765.0,0.0381]
[1730718310977,0.52528388,68766.0,68765.0,0.0381]
[1730718311176,0.48893822,68766.0,68765.0,0.0381]
[1730718311861,0.48993822,68766.0,68765.0,0.0521]
[1730718312063,0.49093822,68766.0,68765.0,0.028]
[1730718312964,0.48993822,68766.0,68765.0,0.014]
[1730718313166,0.49093822,68766.0,68765.0,0.028]
[1730718313368,0.39921134,68766.0,68765.0,0.019]
[1730718317381,0.83549134,68766.0,68765.0,0.019]
[1730718318175,0.39921134,68766.0,68765.0,0.019]
[1730718318886,0.072759,68764.0,68763.0,0.05797937]
[1730718319384,0.509039,68764.0,68763.0,0.05797937]
[1730718319590,0.547539,68764.0,68763.0,0.05797937]
[1730718320078,0.548539,68764.0,68763.0,0.06297937]
[1730718320881,0.549539,68764.0,68763.0,0.005]
[1730718321692,0.113259,68764.0,68763.0,0.005]
[1730718321984,0.548539,68764.0,68763.0,0.005]
[1730718322193,0.113259,68764.0,68763.0,0.005]
[1730718322979,0.112259,68764.0,68753.0,0.04342252]
[1730718323178,0.072771,68753.0,68752.0,0.04342252]
[1730718324180,0.073771,68753.0,68752.0,0.04342252]
[1730718324880,0.072772,68752.0,68751.0,0.072773]
[1730718325580,0.072773,68751.0,68750.0,0.05797937]
[1730718325779,0.072773,68751.0,68749.0,0.0397]
[1730718325780,0.072774,68750.0,68749.0,0.09767937]
[1730718327183,0.072774,68750.0,68749.0,0.0397]
[1730718327380,0.073774,68750.0,68749.0,0.0407]
[1730718327780,0.074774,68750.0,68749.0,0.0407]
[1730718334089,0.073774,68750.0,68749.0,0.0397]
[1730718334283,0.074774,68750.0,68749.0,0.0407]
[1730718334483,0.074774,68750.0,68749.0,0.07706416]
[1730718335393,0.16653956,68750.0,68749.0,0.14983916]
[1730718335982,0.002,68750.0,68749.0,0.51063916]
[1730718336183,0.072765,68759.0,68758.0,0.072763]
[1730718336386,0.09176556,68768.0,68758.0,0.09176556]
[1730718336588,0.09176556,68768.0,68763.0,0.072758]
[1730718336589,0.07276,68764.0,68763.0,0.072758]
[1730718338399,0.07476,68764.0,68763.0,0.073758]
[1730718342186,0.07476,68764.0,68763.0,0.11725999]
[1730718343089,0.07476,68764.0,68763.0,0.073758]
[1730718344898,0.002,68764.0,68763.0,0.510038]
[1730718345193,0.07275,68776.0,68775.0,0.072747]
[1730718345396,0.09394736,68780.0,68779.0,0.072743]
[1730718345397,0.0021818,68780.0,68779.0,0.072743]
[1730718345620,0.0021818,68780.0,68779.0,0.433543]
[1730718345901,0.15713018,68780.0,68779.0,0.433543]
[1730718346099,0.14281142,68780.0,68779.0,0.433543]
[1730718346304,0.1427257,68780.0,68779.0,0.433543]
[1730718346793,0.1405439,68780.0,68779.0,0.433543]
[1730718346990,0.0245439,68780.0,68779.0,0.91426374]
[1730718347191,0.06955999,68789.0,68788.0,0.072734]
[1730718347498,0.12706616,68789.0,68788.0,0.072734]
[1730718348207,0.06955999,68789.0,68788.0,0.072734]
[1730718348790,0.14229299,68789.0,68788.0,0.072734]
[1730718349296,0.14229299,68789.0,68786.0,0.3608]
[1730718349297,0.072739,68785.0,68784.0,0.072737]
[1730718351399,0.086739,68785.0,68784.0,0.073737]
[1730718353208,0.086739,68785.0,68784.0,0.074737]
[1730718353608,0.086739,68785.0,68784.0,0.002]
[1730718354103,0.086739,68785.0,68769.0,0.0369]
[1730718354104,0.07275,68773.0,68769.0,0.072754]
[1730718354303,0.21249927,68773.0,68769.0,0.11663885]
[1730718354504,0.21249927,68773.0,68769.0,0.04388485]
[1730718354702,0.21249927,68773.0,68771.0,0.072751]
[1730718355503,0.21249927,68773.0,68769.0,0.04388485]
[1730718355504,0.072753,68770.0,68769.0,0.04388485]
[1730718355710,0.072761,68762.0,68761.0,0.07494233]
[1730718356206,0.072758,68766.0,68765.0,0.072758]
[1730718357599,0.072761,68762.0,68761.0,0.11782712]
[1730718357901,0.072761,68762.0,68761.0,0.07494233]
[1730718358306,0.072761,68762.0,68761.0,0.00218133]
[1730718359307,0.072761,68762.0,68761.0,0.01618133]
[1730718359308,0.073761,68762.0,68761.0,0.01618133]
[1730718360303,0.074761,68762.0,68761.0,0.02618133]
[1730718365299,0.113161,68762.0,68761.0,0.02618133]
[1730718368102,0.15513291,68762.0,68761.0,0.02618133]
[1730718368920,0.2038541,68762.0,68761.0,0.02618133]
[1730718369099,0.15513291,68762.0,68761.0,0.02618133]
[1730718371919,0.15513291,68762.0,68761.0,0.024]
[1730718372319,0.25285291,68762.0,68761.0,0.024]
[1730718372506,0.15513291,68762.0,68761.0,0.024]
[1730718372708,0.25285291,68762.0,68761.0,0.024]
[1730718373301,0.15513291,68762.0,68761.0,0.024]
[1730718373508,0.20393518,68762.0,68761.0,0.024]
[1730718374718,0.20399309,68762.0,68761.0,0.024]
[1730718376113,0.113161,68762.0,68761.0,0.024]
[1730718377115,0.212801,68762.0,68761.0,0.024]
[1730718378422,0.35255027,68762.0,68761.0,0.024]
[1730718379028,0.212801,68762.0,68761.0,0.024]
[1730718380010,0.934401,68762.0,68761.0,0.024]
[1730718381316,1.51043027,68762.0,68761.0,0.024]
[1730718381821,1.370681,68762.0,68761.0,0.06035781]
[1730718382721,1.51043027,68762.0,68761.0,0.06035781]
[1730718383123,1.72311489,68762.0,68761.0,0.00106602]
[1730718383511,1.65718667,68762.0,68761.0,0.00106602]
[1730718384915,1.72261735,68762.0,68761.0,0.00106602]
[1730718385924,2.36261735,68762.0,68761.0,0.00106602]
[1730718387023,2.22286808,68762.0,68761.0,0.00106602]
[1730718387611,1.50126808,68762.0,68761.0,0.00106602]
[1730718387813,2.22286808,68762.0,68761.0,0.00106602]
[1730718388631,2.22145103,68762.0,68761.0,0.00106602]
[1730718388835,1.78517103,68762.0,68761.0,0.00106602]
[1730718389028,2.22145103,68762.0,68761.0,0.00106602]
[1730718389219,1.78517103,68762.0,68761.0,0.00106602]
[1730718391127,1.574401,68762.0,68761.0,0.00106602]
[1730718391633,2.010681,68762.0,68761.0,0.00106602]
[1730718392321,1.574401,68762.0,68761.0,0.00106602]
[1730718392526,2.010681,68762.0,68761.0,0.00106602]
[1730718392734,1.574401,68762.0,68761.0,0.00106602]
[1730718392936,2.010681,68762.0,68761.0,0.00106602]
[1730718393130,1.574401,68762.0,68761.0,0.00106602]
[1730718395036,1.474761,68762.0,68761.0,0.00106602]
[1730718395335,1.574441,68762.0,68761.0,0.00106602]
[1730718397337,1.75797008,68762.0,68761.0,0.00106602]
[1730718398137,1.84817795,68762.0,68761.0,0.00106602]
[1730718398338,1.96863759,68762.0,68761.0,0.00046747]
[1730718400531,1.24703759,68762.0,68761.0,0.00046747]
[1730718400733,1.60783759,68762.0,68761.0,0.00046747]
[1730718404842,1.56943759,68762.0,68761.0,0.00046747]
[1730718405236,1.56667759,68762.0,68761.0,0.00046747]
[1730718406041,1.35601008,68762.0,68761.0,0.00046747]
[1730718413042,1.44627192,68762.0,68761.0,0.00046747]
[1730718416244,1.34935192,68762.0,68761.0,0.00046747]
[1730718416439,1.44627192,68762.0,68761.0,0.00046747]
[1730718416840,1.39779023,68762.0,68761.0,0.00046747]
[1730718417541,1.03699023,68762.0,68761.0,0.00046747]
[1730718417749,1.39779023,68762.0,68761.0,0.00046747]
[1730718421144,1.56712708,68762.0,68761.0,0.00046747]
[1730718421751,1.56712708,68762.0,68761.0,0.00020623]
[1730718422854,1.92792708,68762.0,68761.0,0.00020623]
[1730718423958,2.38321062,68762.0,68749.0,0.03636416]
[1730718424145,0.25630308,68750.0,68749.0,0.03636416]
[1730718424348,0.37565554,68750.0,68749.0,0.03636416]
[1730718425151,0.37565554,68750.0,68749.0,0.10913916]
[1730718425750,0.30388154,68750.0,68749.0,0.11013916]
[1730718426051,0.14668613,68750.0,68749.0,0.54649916]
[1730718426244,0.08928613,68750.0,68749.0,0.54649916]
[1730718426442,0.03288613,68750.0,68749.0,0.58429916]
[1730718427045,0.19742467,68750.0,68749.0,0.58429916]
[1730718428156,0.16653854,68750.0,68749.0,0.67533528]
[1730718429653,0.09376454,68750.0,68749.0,0.67533528]
[1730718430357,0.09376454,68750.0,68749.0,0.67535457]
[1730718430859,0.09176454,68760.0,68749.0,0.97535457]
[1730718431062,0.072765,68759.0,68758.0,0.072765]
[1730718431357,0.072765,68759.0,68758.0,0.16358028]
[1730718432356,0.072765,68759.0,68758.0,0.23631284]
[1730718432357,0.073765,68759.0,68758.0,0.23631284]
[1730718432855,0.074765,68759.0,68758.0,0.23731284]
[1730718433249,0.074765,68759.0,68758.0,0.14649756]
[1730718434061,0.074765,68759.0,68758.0,0.23717665]
[1730718434260,0.074765,68759.0,68758.0,0.14649756]
[1730718435354,0.074765,68759.0,68758.0,0.073765]
[1730718436259,0.21756791,68759.0,68758.0,0.073765]
[1730718438561,0.2178728,68759.0,68758.0,0.073765]
[1730718440157,0.30963734,68759.0,68758.0,0.001]
[1730718442958,0.37353812,68759.0,68751.0,0.03214752]
[1730718443271,0.32367987,68752.0,68751.0,0.03214752]
[1730718443562,0.16453654,68752.0,68751.0,0.03214752]
[1730718444870,0.12817714,68752.0,68751.0,0.03414752]
[1730718445059,0.12917714,68752.0,68751.0,0.03514752]
[1730718445260,0.12917714,68752.0,68751.0,0.13790857]
[1730718445460,0.12917714,68752.0,68751.0,0.09130802]
[1730718445760,0.13017714,68752.0,68751.0,0.09330802]
[1730718446164,0.13017714,68752.0,68751.0,0.0611605]
[1730718447562,0.13017714,68752.0,68751.0,0.1339335]
[1730718450271,0.13017714,68752.0,68751.0,0.0611605]
[1730718453258,0.13017714,68752.0,68751.0,0.1339335]
[1730718454375,0.13017714,68752.0,68751.0,0.075773]
[1730718456871,0.13017714,68752.0,68751.0,0.06118314]
[1730718457066,0.13017714,68752.0,68751.0,0.04664019]
[1730718457563,0.13017714,68752.0,68751.0,0.003]
[1730718458471,0.07819163,68752.0,68751.0,0.003]
[1730718458674,0.08796435,68752.0,68751.0,0.075773]
[1730718460271,0.04177903,68752.0,68751.0,0.075773]
[1730718461965,0.04222528,68752.0,68751.0,0.075773]
[1730718462172,0.08892871,68752.0,68751.0,0.075773]
[1730718462469,0.08892871,68752.0,68751.0,0.512133]
[1730718462676,0.04222528,68752.0,68751.0,0.512133]
[1730718462874,0.08895356,68752.0,68751.0,0.512133]
[1730718465473,0.002,68752.0,68751.0,0.69087526]
[1730718466576,0.002,68752.0,68751.0,0.6908782]
[1730718467375,0.09376454,68752.0,68751.0,0.6908782]
[1730718467776,0.09376454,68752.0,68751.0,0.2545182]
[1730718468280,0.09376454,68752.0,68751.0,0.16719142]
[1730718468579,0.16653654,68752.0,68751.0,0.25447699]
[1730718468779,0.23723654,68752.0,68751.0,0.25447699]
[1730718468987,0.23723654,68752.0,68751.0,0.16719142]
[1730718469279,0.23723654,68752.0,68751.0,0.25447699]
[1730718469673,0.23723654,68752.0,68751.0,0.16719142]
[1730718470081,0.16446454,68752.0,68751.0,0.16719142]
[1730718470280,0.23723654,68752.0,68751.0,0.16719142]
[1730718471282,0.23723654,68752.0,68751.0,0.25447699]
[1730718471877,0.23723654,68752.0,68751.0,0.16719142]
[1730718472078,0.145472,68752.0,68751.0,0.16719142]
[1730718473587,0.002,68752.0,68751.0,0.075773]
[1730718480485,0.002,68752.0,68751.0,0.16692064]
[1730718484106,0.002,68752.0,68751.0,0.52768799]
[1730718488194,0.002,68752.0,68751.0,0.61498628]
[1730718488386,0.002,68752.0,68751.0,0.436573]
[1730718488581,0.04256249,68752.0,68751.0,0.436573]
[1730718488786,0.04256456,68752.0,68751.0,0.436573]
[1730718490094,0.04256456,68752.0,68751.0,0.872933]
[1730718490597,0.04256456,68752.0,68751.0,0.908633]
[1730718490982,0.002,68752.0,68751.0,0.908633]
[1730718496389,0.002,68752.0,68751.0,1.1081277]
[1730718496893,0.002,68752.0,68751.0,1.4263296]
[1730718497494,0.071,68758.0,68757.0,0.072767]
[1730718497690,0.09176454,68770.0,68766.0,0.072757]
[1730718497691,0.072754,68770.0,68766.0,0.072757]
[1730718497893,0.03658211,68767.0,68766.0,0.72481624]
[1730718499401,0.0344,68767.0,68766.0,0.72481624]
[1730718499792,0.034,68769.0,68768.0,0.072755]
[1730718499989,0.034,68769.0,68768.0,0.95472559]
[1730718500292,0.0344,68776.0,68775.0,0.072748]
[1730718500495,0.0344,68776.0,68775.0,0.61630352]
[1730718500702,0.0344,68776.0,68775.0,0.70341997]
[1730718501398,0.0344,68776.0,68775.0,0.7033777]
[1730718501602,0.0344,68776.0,68775.0,0.61630352]
[1730718501798,0.0344,68776.0,68775.0,1.1395777]
[1730718502004,0.0464,68776.0,68775.0,1.05250352]
[1730718502202,0.0464,68776.0,68775.0,1.15960352]
[1730718502394,0.0464,68776.0,68775.0,1.15961174]
[1730718502596,0.0464,68776.0,68775.0,1.15810077]
[1730718502798,0.0574,68776.0,68775.0,1.15810077]
[1730718503389,0.0574,68776.0,68775.0,1.05119852]
[1730718503599,0.0574,68776.0,68775.0,1.13819095]
[1730718503891,0.0574,68776.0,68775.0,1.05119852]
[1730718504296,0.023,68776.0,68775.0,1.08819852]
[1730718505292,0.0363,68786.0,68785.0,0.072737]
[1730718505491,0.12876454,68808.0,68788.0,0.072733]
[1730718505699,0.12876454,68808.0,68805.0,0.072714]
[1730718505700,0.072717,68806.0,68805.0,0.072714]
[1730718506412,0.12876454,68808.0,68798.0,0.04345576]
[1730718506701,0.072722,68802.0,68801.0,0.07272]
[1730718507809,0.085722,68802.0,68801.0,0.07372]
[1730718508708,0.155422,68802.0,68801.0,0.07372]
[1730718509408,0.0957,68802.0,68801.0,0.43552]
[1730718510401,1e-06,68802.0,68801.0,0.87156]
[1730718510607,0.0708,68814.0,68813.0,0.072707]
[1730718510802,0.0708,68814.0,68813.0,0.528627]
[1730718511408,0.22206201,68814.0,68813.0,0.41223209]
[1730718512100,0.22406201,68814.0,68813.0,0.41323209]
[1730718512501,0.16664757,68814.0,68813.0,0.42223209]
[1730718512815,0.16664757,68814.0,68813.0,0.49493909]
[1730718513206,0.16664757,68814.0,68813.0,0.48593909]
[1730718513400,0.16464757,68814.0,68813.0,0.49493909]
[1730718513602,0.16464757,68814.0,68813.0,0.50193909]
[1730718514201,0.16464757,68814.0,68813.0,0.50293909]
[1730718514905,0.22067032,68814.0,68813.0,0.50293909]
[1730718515504,0.16464757,68814.0,68813.0,0.50293909]
[1730718516512,0.16464757,68814.0,68813.0,0.54602308]
[1730718518407,0.0708,68814.0,68813.0,0.58971099]
[1730718518810,0.0362,68820.0,68819.0,0.072701]
[1730718519006,0.00218075,68830.0,68829.0,0.072691]
[1730718520313,0.00318075,68830.0,68829.0,0.073691]
[1730718521718,0.00318075,68830.0,68829.0,0.11813678]
[1730718522414,0.00518075,68830.0,68829.0,0.11913678]
[1730718529520,0.00518075,68830.0,68829.0,0.47993678]
[1730718530618,0.04823785,68830.0,68829.0,0.47993678]
[1730718532522,0.04823785,68830.0,68829.0,0.11913678]
[1730718532718,0.04823785,68830.0,68829.0,0.47993678]
[1730718533523,0.00518075,68830.0,68829.0,0.47993678]
[1730718535519,0.00518075,68830.0,68829.0,0.57158861]
[1730718540418,0.00518075,68830.0,68829.0,0.25411959]
[1730718540620,0.00518075,68830.0,68829.0,0.61491959]
[1730718542124,0.00518075,68830.0,68829.0,0.57158861]
[1730718542325,0.0366,68841.0,68840.0,0.072679]
[1730718542516,0.143772,68847.0,68846.0,0.072673]
[1730718542833,0.143772,68847.0,68846.0,0.16432483]
[1730718543320,0.0711,68847.0,68846.0,0.11618726]
[1730718543725,0.0711,68847.0,68846.0,0.47698726]
[1730718543926,0.0711,68847.0,68846.0,0.433473]
[1730718544327,0.0721,68847.0,68846.0,0.47797987]
[1730718544928,0.144772,68847.0,68846.0,0.47797987]
[1730718545133,0.144772,68847.0,68846.0,0.47897987]
[1730718545326,0.144772,68847.0,68846.0,0.435473]
[1730718546130,0.143772,68847.0,68846.0,0.435473]
[1730718547421,0.143772,68847.0,68846.0,0.47897987]
[1730718548229,0.108472,68847.0,68846.0,0.47897987]
[1730718548527,0.15223846,68847.0,68846.0,0.435473]
[1730718548831,0.20305337,68847.0,68846.0,0.435473]
[1730718549132,0.26101427,68847.0,68846.0,0.435473]
[1730718549535,0.20305337,68847.0,68846.0,0.435473]
[1730718550634,0.20305337,68847.0,68846.0,0.074673]
[1730718550836,0.13038137,68847.0,68846.0,0.074673]
[1730718551134,0.13038137,68847.0,68846.0,0.17062376]
[1730718551135,0.09458137,68847.0,68846.0,0.17062376]
[1730718551433,0.15919351,68851.0,68846.0,0.072673]
[1730718551736,0.14918601,68850.0,68849.0,0.072669]
[1730718552043,0.00217963,68861.0,68860.0,0.072658]
[1730718552337,0.14792498,68874.0,68860.0,0.072658]
[1730718552338,0.1592258,68862.0,68861.0,0.072657]
[1730718552539,0.1592258,68865.0,68864.0,0.072654]
[1730718552726,0.3608,68875.0,68867.0,0.07265]
[1730718552727,0.1592258,68868.0,68867.0,0.07265]
[1730718552927,0.139432,68885.0,68884.0,0.072632]
[1730718553237,0.139432,68885.0,68884.0,0.03088825]
[1730718553238,0.06658077,68885.0,68884.0,0.03088825]
[1730718553440,0.06658077,68887.0,68886.0,0.07263]
[1730718553828,0.00217796,68888.0,68887.0,0.072629]
[1730718554150,0.1,68900.0,68887.0,0.50042801]
[1730718554444,0.1,68900.0,68899.0,0.072617]
[1730718554628,0.1,68900.0,68899.0,0.168177]
[1730718555340,0.1,68900.0,68899.0,0.603577]
[1730718556537,0.101,68900.0,68899.0,0.604577]
[1730718556844,0.102,68900.0,68899.0,0.605577]
[1730718557235,0.101,68900.0,68899.0,0.604577]
[1730718557435,0.101,68900.0,68899.0,0.616577]
[1730718558442,0.1,68900.0,68899.0,0.615577]
[1730718558646,0.1,68900.0,68899.0,0.629577]
[1730718559332,0.1,68900.0,68899.0,0.23828264]
[1730718559529,0.1,68900.0,68899.0,0.67568264]
[1730718560132,0.1,68900.0,68899.0,0.24028264]
[1730718560537,0.1,68900.0,68899.0,0.67568264]
[1730718560757,0.072581,68934.0,68899.0,0.81531065]
[1730718560758,0.072599,68917.0,68899.0,0.81531065]
[1730718561047,0.03737684,68929.0,68915.0,0.13962801]
[1730718561233,0.03737684,68929.0,68921.0,0.13962801]
[1730718561433,0.07476184,68929.0,68921.0,0.13962801]
[1730718561639,0.00217684,68929.0,68928.0,0.21221401]
[1730718562135,0.3608,68940.0,68928.0,0.21221401]
[1730718562136,0.0363,68944.0,68928.0,0.57486801]
[1730718562334,0.0363,68944.0,68938.0,0.13962801]
[1730718562734,0.072576,68938.0,68937.0,0.09712]
[1730718563339,0.13962801,68952.0,68937.0,0.09712]
[1730718563544,0.072571,68943.0,68938.0,0.09708]
[1730718563749,0.18699956,68939.0,68938.0,0.169656]
[1730718563937,0.40305696,68939.0,68938.0,0.072576]
[1730718564147,0.2886324,68939.0,68938.0,0.09708]
[1730718564339,0.28879021,68939.0,68938.0,0.09708]
[1730718564543,0.28879021,68939.0,68937.0,0.001]
[1730718564544,0.28879021,68939.0,68937.0,0.09708]
[1730718564741,0.21621521,68938.0,68937.0,0.09708]
[1730718564939,0.21621521,68938.0,68935.0,0.27109357]
[1730718565238,0.28879221,68937.0,68935.0,0.14168708]
[1730718565437,0.21621521,68936.0,68935.0,0.06369982]
[1730718566251,0.21621521,68936.0,68935.0,0.07269982]
[1730718566654,0.21621521,68936.0,68935.0,0.07969982]
[1730718567542,0.21621521,68936.0,68935.0,0.07069982]
[1730718567744,0.21621521,68936.0,68935.0,0.07969982]
[1730718568444,0.19796749,68936.0,68935.0,0.07969982]
[1730718568651,0.27054549,68936.0,68935.0,0.016]
[1730718568848,0.07258,68934.0,68933.0,0.02878175]
[1730718569170,0.13102589,68934.0,68924.0,0.3608]
[1730718569343,0.072589,68925.0,68924.0,0.3608]
[1730718569544,0.20361489,68925.0,68924.0,0.3608]
[1730718570051,0.27055649,68925.0,68924.0,0.40382105]
[1730718570348,0.63135649,68925.0,68924.0,0.05702105]
[1730718570550,0.433389,68925.0,68924.0,0.014]
[1730718570948,0.072596,68919.0,68915.0,0.072599]
[1730718571148,0.3608,68916.0,68915.0,0.072599]
[1730718571454,0.64,68932.0,68915.0,0.072599]
[1730718571455,0.072582,68932.0,68915.0,0.23670801]
[1730718571647,0.072582,68932.0,68929.0,0.072585]
[1730718571842,0.0358,68933.0,68924.0,0.13962801]
[1730718572048,0.0358,68933.0,68932.0,0.072582]
[1730718572854,0.433379,68935.0,68933.0,0.072581]
[1730718573756,0.072581,68933.0,68932.0,0.019]
[1730718574152,0.072581,68933.0,68932.0,0.01010868]
[1730718574347,0.072581,68933.0,68932.0,0.00010868]
[1730718575355,0.072589,68926.0,68923.0,0.072591]
[1730718575549,0.072589,68926.0,68918.0,0.13962801]
[1730718575858,0.072589,68925.0,68924.0,0.07259]
[1730718576757,0.07259,68924.0,68923.0,0.012]
[1730718577159,0.072591,68923.0,68921.0,0.072593]
[1730718577352,0.433391,68923.0,68921.0,0.072593]
[1730718577556,0.433391,68923.0,68922.0,0.072592]
[1730718578060,0.3608,68923.0,68913.0,0.50042801]
[1730718578357,0.072596,68919.0,68918.0,0.072597]
[1730718578557,0.001,68925.0,68924.0,0.07259]
[1730718578751,0.03535566,68925.0,68924.0,0.21221801]
[1730718578951,0.07557187,68925.0,68924.0,0.57486801]
[1730718579257,0.07557187,68925.0,68924.0,0.64745801]
[1730718580062,0.07457187,68925.0,68924.0,0.64745801]
[1730718580462,0.07557187,68925.0,68924.0,0.65145801]
[1730718580865,0.07557187,68925.0,68924.0,0.69504985]
[1730718581072,0.07657187,68925.0,68924.0,0.27380985]
[1730718581362,0.03635566,68925.0,68924.0,0.27380985]
[1730718581568,0.12112252,68925.0,68924.0,0.27380985]
[1730718581864,0.12112252,68925.0,68924.0,0.14218184]
[1730718582854,0.11912252,68925.0,68924.0,0.11618184]
[1730718583057,0.12112252,68925.0,68924.0,0.14218184]
[1730718583363,0.07657187,68925.0,68924.0,0.14218184]
[1730718585066,0.05276839,68930.0,68924.0,0.81711509]
[1730718585254,0.05276839,68930.0,68929.0,0.21221301]
[1730718585651,0.3608,68931.0,68929.0,0.57486801]
[1730718585856,0.3608,68931.0,68930.0,0.072584]
[1730718586856,0.3618,68931.0,68930.0,0.072584]
[1730718587166,0.3618,68931.0,68930.0,0.085584]
[1730718587167,0.3628,68931.0,68930.0,0.085584]
[1730718588063,0.3628,68931.0,68930.0,0.184184]
[1730718588365,0.3618,68931.0,68930.0,0.184184]
[1730718588554,0.3618,68931.0,68930.0,0.195184]
[1730718588555,0.3628,68931.0,68930.0,0.195184]
[1730718589270,0.3628,68931.0,68930.0,0.630424]
[1730718590252,0.3628,68931.0,68930.0,0.195184]
[1730718594183,0.3628,68931.0,68930.0,0.096584]
[1730718596173,0.435383,68931.0,68930.0,0.024]
[1730718596370,0.435383,68931.0,68930.0,0.096584]
[1730718597976,0.435383,68931.0,68930.0,0.024]
[1730718598774,0.435383,68931.0,68930.0,0.096584]
[1730718600782,0.435383,68931.0,68924.0,0.04390015]
[1730718600783,0.52760679,68931.0,68924.0,0.04390015]
[1730718600976,0.3628,68931.0,68930.0,0.072584]
[1730718601170,0.52760818,68931.0,68930.0,0.072584]
[1730718602372,0.52660818,68931.0,68930.0,0.072584]
[1730718602573,0.52760818,68931.0,68930.0,0.072584]
[1730718603278,0.52760818,68931.0,68930.0,0.079584]
[1730718605873,0.52760818,68931.0,68930.0,0.12317763]
[1730718606665,0.60019118,68931.0,68930.0,0.05059363]
[1730718607574,0.96099118,68931.0,68930.0,0.05059363]
[1730718607771,0.072591,68924.0,68923.0,0.072591]
[1730718607970,0.54613988,68924.0,68923.0,0.072591]
[1730718608170,0.52268672,68924.0,68923.0,0.072591]
[1730718608771,0.107288,68926.0,68923.0,0.58777035]
[1730718609080,0.072589,68925.0,68924.0,0.51518895]
[1730718609279,0.072589,68925.0,68924.0,0.35759076]
[1730718609585,0.433389,68925.0,68924.0,0.35792789]
[1730718609778,0.868629,68925.0,68924.0,0.30392409]
[1730718609972,0.868629,68925.0,68924.0,0.16669835]
[1730718610175,0.868629,68925.0,68924.0,0.06169835]
[1730718610368,0.07259,68924.0,68923.0,0.003]
[1730718610574,0.50787,68924.0,68923.0,0.003]
[1730718611081,0.072596,68919.0,68918.0,0.072596]
[1730718611268,0.433396,68919.0,68918.0,0.072596]
[1730718611882,0.0726,68915.0,68914.0,0.11521316]
[1730718612076,0.0324,68918.0,68914.0,0.0726]
[1730718612271,0.104997,68918.0,68917.0,0.072598]
[1730718613480,0.105997,68918.0,68917.0,0.072598]
[1730718614182,0.0344,68918.0,68917.0,0.075598]
[1730718615387,0.0344,68918.0,68917.0,0.16245098]
[1730718615984,0.0344,68918.0,68917.0,0.075598]
[1730718615985,0.106997,68918.0,68917.0,0.075598]
[1730718616174,0.106997,68918.0,68917.0,0.003]
[1730718616483,0.106997,68918.0,68917.0,0.06089449]
[1730718617086,0.0344,68918.0,68917.0,0.13349249]
[1730718617974,0.0344,68918.0,68917.0,0.075598]
[1730718618174,0.002,68918.0,68917.0,0.075598]
[1730718618985,0.074597,68918.0,68917.0,0.003]
[1730718619205,0.074597,68918.0,68917.0,0.06088803]
[1730718619486,0.074597,68918.0,68917.0,0.13348603]
[1730718620279,0.002,68918.0,68917.0,0.13348603]
[1730718620875,0.002,68918.0,68917.0,0.075598]
[1730718621070,0.074597,68918.0,68917.0,0.003]
[1730718621983,0.509917,68918.0,68917.0,0.003]
[1730718622280,0.074597,68918.0,68917.0,0.003]
[1730718622590,0.074597,68918.0,68917.0,0.03927551]
[1730718623178,0.074597,68918.0,68917.0,0.08269909]
[1730718623779,0.074597,68918.0,68917.0,0.03927551]
[1730718623974,0.074597,68918.0,68917.0,0.11165536]
[1730718624889,0.074597,68918.0,68917.0,0.18425336]
[1730718625080,0.002,68918.0,68917.0,0.2109701]
[1730718625491,0.002,68918.0,68917.0,0.29782308]
[1730718625989,0.074597,68918.0,68917.0,0.29782308]
[1730718626295,0.002,68918.0,68917.0,0.2977481]
[1730718626496,0.002,68918.0,68917.0,0.21089512]
[1730718626785,0.002,68918.0,68917.0,0.13829712]
[1730718626786,0.074597,68918.0,68917.0,0.13829712]
[1730718627691,0.074597,68918.0,68917.0,0.17457263]
[1730718627878,0.074597,68918.0,68917.0,0.07555102]
[1730718629584,0.074597,68918.0,68917.0,0.24742028]
[1730718629985,0.002,68918.0,68917.0,0.33429542]
[1730718630185,0.3608,68919.0,68918.0,0.072597]
[1730718630380,0.3608,68919.0,68918.0,0.28987502]
[1730718630791,0.30994965,68919.0,68918.0,0.32317502]
[1730718630981,0.52217366,68919.0,68918.0,0.17186826]
[1730718631185,0.38254565,68919.0,68918.0,0.17186826]
[1730718631785,0.38354565,68919.0,68918.0,0.18586826]
[1730718631986,0.38454565,68919.0,68918.0,0.19986826]